bitfinex/quotes_SOLUSD_20250112
["timestamp","ask_amount","ask_price","bid_price","bid_amount"]
[1736645583662,104.0702,187.26,187.16,1.5522]
[1736645583879,101.4,187.22,187.12,1.5103]
[1736645584164,101.4,187.22,187.12,10.43355008]
[1736645585360,101.4,187.22,187.13,8.92325008]
[1736645585556,101.4,187.22,187.12,10.43355008]
[1736645587282,101.4,187.22,187.13,8.92325008]
[1736645587962,101.4,187.22,187.14,8.92325008]
[1736645591877,81.4,187.22,187.16,8.92325008]
[1736645592083,81.4,187.22,187.13,23.776884]
[1736645592084,81.4,187.22,187.17,8.92325008]
[1736645592984,4.54,187.28,187.21,8.92325008]
[1736645592985,81.4,187.25,187.21,8.92325008]
[1736645593163,8.23027303,187.28,187.22,8.92325008]
[1736645593578,20.0,187.28,187.22,8.92325008]
[1736645594084,91.4788,187.31,187.18,0.80105894]
[1736645594287,18.02155127,187.32,187.26,8.92325008]
[1736645594904,18.02155127,187.32,187.25,8.92325008]
[1736645595967,18.02155127,187.32,187.23,1.6629]
[1736645598493,81.4,187.31,187.23,10.58615008]
[1736645600366,20.0,187.28,187.17,0.80099684]
[1736645600571,20.0,187.28,187.15,14.9845]
[1736645600787,81.4,187.27,187.16,8.92325008]
[1736645601185,20.0,187.28,187.2,8.92325008]
[1736645601387,20.0,187.28,187.22,8.92325008]
[1736645601595,81.4,187.31,187.23,8.92325008]
[1736645601889,81.4,187.31,187.24,8.92325008]
[1736645602805,18.02155127,187.32,187.25,8.92325008]
[1736645602981,18.02155127,187.32,187.27,8.92325008]
[1736645603166,18.02155127,187.32,187.28,8.92325008]
[1736645603575,18.02155127,187.32,187.29,8.92325008]
[1736645603892,18.02155127,187.32,187.28,8.92325008]
[1736645604083,18.02155127,187.32,187.27,8.92325008]
[1736645604263,18.02155127,187.32,187.28,8.92325008]
[1736645608876,18.02155127,187.32,187.29,8.92325008]
[1736645609080,81.9,187.35,187.29,10.55005008]
[1736645610305,20.0,187.36,187.29,10.55005008]
[1736645611186,101.9,187.36,187.26,8.92325008]
[1736645612105,101.9,187.36,187.27,23.776884]
[1736645612897,101.9,187.36,187.26,32.70013408]
[1736645613314,101.9,187.32,187.25,1.6268]
[1736645613484,101.9,187.32,187.22,8.92325008]
[1736645614214,101.9,187.32,187.24,23.776884]
[1736645617201,101.9,187.32,187.24,8.92325008]
[1736645618116,101.9,187.32,187.22,23.776884]
[1736645618117,101.9,187.32,187.26,23.776884]
[1736645619792,101.9,187.32,187.24,8.92325008]
[1736645620307,101.9,187.32,187.23,8.92325008]
[1736645620726,101.9,187.32,187.24,23.776884]
[1736645621300,101.9,187.32,187.24,8.92325008]
[1736645622633,81.9,187.32,187.24,23.776884]
[1736645622799,81.9,187.32,187.23,8.92325008]
[1736645623003,87.4388,187.34,187.22,8.92325008]
[1736645623315,20.0,187.31,187.21,1.6268]
[1736645623728,81.9,187.3,187.21,1.6268]
[1736645624414,84.5695,187.3,187.21,1.6268]
[1736645627136,84.5695,187.3,187.2,23.776884]
[1736645628233,84.5695,187.3,187.2,8.92325008]
[1736645628436,81.9,187.29,187.2,8.92325008]
[1736645628634,81.9,187.29,187.2,8.42325008]
[1736645629938,81.9,187.29,187.21,8.92325008]
[1736645633341,81.9,187.29,187.18,23.776884]
[1736645633342,81.9,187.29,187.2,8.92325008]
[1736645634316,81.9,187.27,187.2,8.92325008]
[1736645638961,81.9,187.27,187.21,8.92325008]
[1736645640343,81.9,187.26,187.21,8.92325008]
[1736645641121,81.9,187.26,187.23,8.92325008]
[1736645641322,81.9,187.29,187.24,8.92325008]
[1736645641718,81.9,187.29,187.23,8.92325008]
[1736645643662,81.9,187.28,187.18,21.394604]
[1736645643954,81.9,187.28,187.2,28.92325008]
[1736645644259,81.9,187.28,187.21,23.776884]
[1736645644619,81.9,187.28,187.21,32.70013408]
[1736645646237,81.9,187.27,187.22,8.92325008]
[1736645647128,81.9,187.27,187.21,32.70013408]
[1736645649049,81.9,187.27,187.21,23.776884]
[1736645649445,81.9,187.27,187.17,14.9875]
[1736645649446,81.9,187.25,187.17,1.6311]
[1736645649654,81.9,187.23,187.16,8.92325008]
[1736645649947,81.9,187.23,187.16,23.776884]
[1736645650450,81.9,187.22,187.15,8.92325008]
[1736645650628,81.9,187.22,187.14,8.92325008]
[1736645650828,81.9,187.22,187.15,8.92325008]
[1736645651041,81.9,187.22,187.14,8.92325008]
[1736645651245,81.9,187.22,187.13,1.6383]
[1736645651540,81.9,187.22,187.14,32.70013408]
[1736645651845,81.9,187.22,187.15,8.92325008]
[1736645653032,81.9,187.22,187.16,23.776884]
[1736645653657,81.9,187.22,187.15,8.92325008]
[1736645654658,81.9,187.22,187.16,23.776884]
[1736645654865,81.9,187.22,187.16,32.70013408]
[1736645655534,81.9,187.22,187.16,8.92325008]
[1736645655734,81.9,187.22,187.14,23.776884]
[1736645655936,81.9,187.22,187.19,8.92325008]
[1736645656657,81.9,187.26,187.2,8.92325008]
[1736645657436,81.9,187.26,187.21,8.92325008]
[1736645658464,81.9,187.29,187.23,8.92325008]
[1736645658665,81.9,187.29,187.25,8.92325008]
[1736645659436,81.9,187.29,187.26,8.92325008]
[1736645659855,81.9,187.29,187.25,8.92325008]
[1736645661939,81.9,187.34,187.26,8.92325008]
[1736645662249,81.9,187.34,187.28,8.92325008]
[1736645664040,81.9,187.34,187.27,8.92325008]
[1736645664584,81.9,187.38,187.31,8.92325008]
[1736645664941,81.9,187.38,187.3,8.92325008]
[1736645665941,81.9,187.38,187.29,32.70013408]
[1736645666143,81.9,187.38,187.28,1.5599]
[1736645666363,81.9,187.37,187.28,1.5599]
[1736645667467,2.6686,187.36,187.24,20.0]
[1736645667654,81.9,187.35,187.25,28.92325008]
[1736645670473,81.9,187.31,187.23,1.6487]
[1736645670649,81.9,187.31,187.23,10.57195008]
[1736645670980,81.9,187.31,187.24,23.776884]
[1736645671155,81.9,187.31,187.26,23.776884]
[1736645681686,81.9,187.31,187.24,8.92325008]
[1736645682587,81.9,187.31,187.25,23.776884]
[1736645682980,81.9,187.31,187.25,8.92325008]
[1736645685690,81.9,187.31,187.24,32.70013408]
[1736645686785,81.9,187.31,187.24,23.776884]
[1736645687772,81.9,187.31,187.24,32.70013408]
[1736645687980,81.9,187.31,187.26,8.92325008]
[1736645688967,81.9,187.31,187.27,8.92325008]
[1736645689164,81.9,187.31,187.28,8.92325008]
[1736645689894,81.9,187.31,187.27,8.92325008]
[1736645691802,8.23027303,187.43,187.31,23.776884]
[1736645691981,8.23027303,187.43,187.36,8.92325008]
[1736645692183,8.23027303,187.43,187.37,8.92325008]
[1736645692777,20.0,187.43,187.37,8.92325008]
[1736645693185,20.0,187.43,187.37,23.776884]
[1736645693589,81.9,187.46,187.37,23.776884]
[1736645694008,20.0,187.43,187.37,23.776884]
[1736645694183,81.9,187.46,187.37,23.776884]
[1736645694704,20.0,187.43,187.37,23.776884]
[1736645695192,20.0,187.43,187.37,8.92325008]
[1736645697396,20.0,187.43,187.36,32.70013408]
[1736645700187,20.0,187.43,187.37,8.92325008]
[1736645702012,81.9,187.45,187.37,8.92325008]
[1736645703112,81.9,187.44,187.37,8.92325008]
[1736645705213,81.9,187.44,187.35,17.05435008]
[1736645705711,81.9,187.44,187.35,8.1311]
[1736645705922,2.6676,187.43,187.35,8.1311]
[1736645708125,20.0,187.41,187.35,1.6608]
[1736645710113,81.9,187.42,187.35,1.6608]
[1736645712322,81.9,187.41,187.35,1.6608]
[1736645718142,81.9,187.4,187.35,1.6608]
[1736645720824,101.9,187.37,187.31,6.4444]
[1736645726135,101.9,187.37,187.3,1.5159]
[1736645727531,104.5686,187.37,187.3,1.5159]
[1736645730136,81.9,187.36,187.3,1.5159]
[1736645735334,81.9,187.36,187.3,10.43915008]
[1736645735911,81.9,187.36,187.31,8.92325008]
[1736645738121,81.9,187.36,187.32,8.92325008]
[1736645739549,81.9,187.36,187.33,8.92325008]
[1736645742242,81.9,187.41,187.33,8.92325008]
[1736645742421,81.9,187.41,187.34,8.92325008]
[1736645744220,81.9,187.41,187.33,6.6485]
[1736645744424,84.568,187.41,187.3,10.43915008]
[1736645746037,84.568,187.41,187.32,8.92325008]
[1736645748158,81.9,187.4,187.32,8.92325008]
[1736645749556,81.9,187.4,187.31,8.92325008]
[1736645754061,81.9,187.39,187.31,8.92325008]
[1736645759847,81.9,187.39,187.33,8.92325008]
[1736645760238,81.9,187.39,187.34,8.92325008]
[1736645760553,81.9,187.39,187.33,8.92325008]
[1736645761955,81.9,187.39,187.35,8.92325008]
[1736645762182,81.9,187.43,187.37,8.92325008]
[1736645762467,81.9,187.43,187.38,8.92325008]
[1736645763553,81.9,187.43,187.39,23.776884]
[1736645763757,81.9,187.43,187.39,32.70013408]
[1736645764659,81.9,187.49,187.41,23.776884]
[1736645766187,81.9,187.49,187.4,8.92325008]
[1736645766468,81.9,187.49,187.39,8.92325008]
[1736645766665,20.0,187.46,187.37,1.511]
[1736645766851,20.0,187.46,187.37,10.43425008]
[1736645767051,20.0,187.46,187.38,8.92325008]
[1736645770766,20.0,187.46,187.39,23.776884]
[1736645771969,20.0,187.45,187.39,23.776884]
[1736645773576,20.0,187.45,187.39,8.92325008]
[1736645774567,20.0,187.45,187.38,32.70013408]
[1736645775969,81.9,187.48,187.39,8.92325008]
[1736645776179,81.9,187.48,187.41,8.92325008]
[1736645777573,81.9,187.48,187.43,8.92325008]
[1736645779070,81.9,187.48,187.42,8.92325008]
[1736645779262,81.9,187.48,187.43,23.776884]
[1736645779463,81.9,187.48,187.39,20.0]
[1736645779677,81.9,187.48,187.41,8.92325008]
[1736645781183,81.9,187.48,187.42,32.70013408]
[1736645781559,7.72019683,187.55,187.44,23.776884]
[1736645781560,81.9,187.53,187.44,23.776884]
[1736645781786,81.9,187.53,187.44,32.70013408]
[1736645784775,81.9,187.53,187.45,8.92325008]
[1736645786959,81.9,187.52,187.45,8.92325008]
[1736645788854,81.9,187.52,187.44,8.92325008]
[1736645789991,81.9,187.52,187.45,8.92325008]
[1736645790380,81.9,187.52,187.46,23.776884]
[1736645791786,81.9,187.52,187.42,1.5082]
[1736645791990,81.9,187.52,187.42,10.43145008]
[1736645792561,81.9,187.52,187.43,23.776884]
[1736645793884,84.5665,187.51,187.42,1.5082]
[1736645794788,81.9,187.5,187.42,1.5082]
[1736645796779,81.9,187.5,187.42,10.43145008]
[1736645796981,81.9,187.5,187.43,32.70013408]
[1736645797189,81.9,187.5,187.45,23.776884]
[1736645800788,81.9,187.5,187.42,1.5082]
[1736645800987,81.9,187.5,187.41,8.92325008]
[1736645801195,81.9,187.5,187.42,23.776884]
[1736645801585,81.9,187.5,187.39,23.776884]
[1736645801781,81.9,187.5,187.42,23.776884]
[1736645804801,81.9,187.5,187.42,32.70013408]
[1736645804973,81.9,187.5,187.43,8.92325008]
[1736645805171,81.9,187.5,187.44,23.776884]
[1736645805473,81.9,187.5,187.44,8.92325008]
[1736645807293,20.0,187.51,187.45,8.92325008]
[1736645809396,20.0,187.51,187.44,32.70013408]
[1736645809608,20.0,187.51,187.45,8.92325008]
[1736645810075,81.9,187.54,187.46,8.92325008]
[1736645815178,81.9,187.54,187.46,23.776884]
[1736645815689,81.9,187.54,187.46,8.92325008]
[1736645815891,81.9,187.54,187.47,8.92325008]
[1736645817205,81.9,187.54,187.46,8.92325008]
[1736645818001,81.9,187.57,187.49,8.92325008]
[1736645818211,81.9,187.57,187.45,0.25098]
[1736645818212,81.9,187.57,187.5,8.92325008]
[1736645820194,81.9,187.57,187.51,23.776884]
[1736645820398,81.9,187.57,187.51,32.70013408]
[1736645823030,18.24187474,187.58,187.52,8.92325008]
[1736645823191,81.9,187.61,187.52,8.92325008]
[1736645825616,81.9,187.61,187.49,1.6378]
[1736645825823,20.0,187.58,187.49,10.56105008]
[1736645829297,20.0,187.58,187.49,1.6378]
[1736645829503,20.0,187.58,187.49,10.56105008]
[1736645830918,81.9,187.57,187.49,1.6378]
[1736645832128,81.9,187.56,187.49,1.6378]
[1736645834514,81.9,187.56,187.48,6.1743]
[1736645834734,81.9,187.54,187.43,1.6243]
[1736645834934,81.9,187.54,187.44,23.776884]
[1736645835542,81.9,187.54,187.43,10.54755008]
[1736645835755,84.5661,187.54,187.43,1.6243]
[1736645836238,84.5661,187.54,187.43,10.54755008]
[1736645837820,81.9,187.53,187.43,10.54755008]
[1736645843848,81.9,187.52,187.43,10.54755008]
[1736645844651,81.9,187.52,187.44,8.92325008]
[1736645850550,81.9,187.52,187.43,10.54755008]
[1736645851453,81.9,187.52,187.44,8.92325008]
[1736645851752,81.9,187.52,187.46,8.92325008]
[1736645854246,81.9,187.52,187.45,8.92325008]
[1736645858244,81.9,187.52,187.44,23.776884]
[1736645858645,81.9,187.52,187.45,8.92325008]
[1736645863849,81.9,187.52,187.44,32.70013408]
[1736645868768,81.9,187.52,187.43,1.6243]
[1736645868974,2.6665,187.51,187.43,1.6243]
[1736645869148,2.6665,187.51,187.41,8.92325008]
[1736645869149,20.0,187.49,187.41,8.92325008]
[1736645869569,20.0,187.49,187.4,23.776884]
[1736645869746,20.0,187.49,187.41,8.92325008]
[1736645876270,20.0,187.49,187.39,1.5593]
[1736645876271,81.9,187.46,187.39,1.5593]
[1736645876452,81.9,187.46,187.38,8.92325008]
[1736645876861,81.9,187.46,187.39,8.92325008]
[1736645880068,81.9,187.46,187.38,8.92325008]
[1736645880389,81.9,187.46,187.39,8.92325008]
[1736645882951,81.9,187.45,187.39,8.92325008]
[1736645887861,81.9,187.45,187.4,8.92325008]
[1736645893691,81.9,187.45,187.39,8.92325008]
[1736645894589,81.9,187.45,187.36,23.776884]
[1736645894590,81.9,187.45,187.38,8.92325008]
[1736645896288,81.9,187.45,187.37,8.92325008]
[1736645898066,81.9,187.45,187.38,8.92325008]
[1736645898266,81.9,187.45,187.39,8.92325008]
[1736645898963,81.9,187.45,187.4,8.92325008]
[1736645899176,81.9,187.49,187.43,8.92325008]
[1736645899376,2.6664,187.52,187.44,8.92325008]
[1736645899377,8.23027303,187.52,187.44,8.92325008]
[1736645899584,8.23027303,187.52,187.45,8.92325008]
[1736645900591,81.9,187.52,187.45,8.92325008]
[1736645900762,81.9,187.52,187.44,8.92325008]
[1736645901680,81.9,187.51,187.43,8.92325008]
[1736645901883,81.9,187.51,187.42,8.92325008]
[1736645902065,81.9,187.51,187.41,10.58205008]
[1736645902261,20.0,187.46,187.37,1.6588]
[1736645902489,20.0,187.45,187.37,1.6588]
[1736645903996,20.0,187.45,187.34,23.776884]
[1736645904180,20.0,187.45,187.35,8.92325008]
[1736645906686,20.0,187.43,187.34,32.70013408]
[1736645908984,20.0,187.43,187.34,23.776884]
[1736645909395,20.0,187.43,187.33,10.58205008]
[1736645912887,81.9,187.42,187.33,10.58205008]
[1736645915185,81.9,187.42,187.34,8.92325008]
[1736645916509,81.9,187.42,187.32,8.92325008]
[1736645917077,22.6677,187.43,187.32,8.92325008]
[1736645917078,81.9,187.4,187.32,8.92325008]
[1736645922801,81.9,187.39,187.28,1.6588]
[1736645922979,81.9,187.38,187.28,10.58205008]
[1736645923615,81.9,187.38,187.29,23.776884]
[1736645923783,81.9,187.38,187.28,10.58205008]
[1736645924491,81.9,187.35,187.25,8.92325008]
[1736645925298,81.9,187.35,187.26,8.92325008]
[1736645927909,81.9,187.34,187.26,8.92325008]
[1736645933915,81.9,187.33,187.26,8.92325008]
[1736645934416,81.9,187.33,187.25,8.92325008]
[1736645937624,81.9,187.33,187.24,32.70013408]
[1736645938421,81.9,187.33,187.25,8.92325008]
[1736645939822,81.9,187.32,187.25,8.92325008]
[1736645942226,81.9,187.32,187.26,8.92325008]
[1736645950829,81.9,187.32,187.28,8.92325008]
[1736645951028,81.9,187.32,187.29,8.92325008]
[1736645951335,81.9,187.32,187.3,8.92325008]
[1736645954030,81.9,187.38,187.3,8.92325008]
[1736645956142,81.9,187.37,187.29,8.92325008]
[1736645956441,81.9,187.37,187.28,8.92325008]
[1736645956741,81.9,187.37,187.27,8.92325008]
[1736645958112,81.9,187.33,187.26,23.776884]
[1736645958453,81.9,187.33,187.24,8.92325008]
[1736645958949,81.9,187.33,187.25,23.776884]
[1736645962143,81.9,187.33,187.25,8.92325008]
[1736645962743,81.9,187.32,187.25,8.92325008]
[1736645965544,81.9,187.32,187.28,8.92325008]
[1736645965731,81.9,187.32,187.29,8.92325008]
[1736645965929,81.9,187.32,187.25,0.12549]
[1736645965930,81.9,187.38,187.3,8.92325008]
[1736645969928,81.9,187.38,187.29,10.58915008]
[1736645975949,81.9,187.37,187.29,10.58915008]
[1736645977344,81.9,187.37,187.29,1.6659]
[1736645978148,81.9,187.36,187.29,10.58915008]
[1736645981756,81.9,187.35,187.29,10.58915008]
[1736645985832,81.9,187.35,187.31,8.92325008]
[1736645987156,81.9,187.35,187.32,8.92325008]
[1736645987354,81.9,187.35,187.33,8.92325008]
[1736645987663,81.9,187.42,187.34,8.92325008]
[1736645988655,81.9,187.42,187.35,8.92325008]
[1736645990846,81.9,187.41,187.35,8.92325008]
[1736645992461,81.9,187.41,187.34,8.1463]
[1736645996690,81.9,187.4,187.34,8.1463]
[1736646001854,81.9,187.38,187.3,7.989]
[1736646002563,101.9,187.35,187.3,7.989]
[1736646004668,101.9,187.35,187.3,1.5674]
[1736646004974,101.9,187.35,187.26,1.5674]
[1736646005776,81.9,187.3,187.26,1.5674]
[1736646008178,81.9,187.29,187.26,1.5674]
[1736646012387,81.9,187.34,187.26,1.5674]
[1736646012885,7.1886,187.36,187.26,1.5674]
[1736646012886,81.9,187.33,187.26,1.5674]
[1736646017691,81.9,187.32,187.26,1.5674]
[1736646018767,81.9,187.3,187.26,1.5674]
[1736646020469,81.9,187.29,187.26,1.5674]
[1736646023698,81.9,187.28,187.26,1.5674]
[1736646029719,81.9,187.31,187.26,1.5674]
[1736646035618,81.9,187.3,187.26,1.5674]
[1736646035825,81.9,187.25,187.18,7.9341]
[1736646037422,81.9,187.25,187.18,16.85735008]
[1736646039338,81.9,187.24,187.18,16.85735008]
[1736646039638,81.9,187.24,187.18,7.9341]
[1736646041970,81.9,187.22,187.18,7.9341]
[1736646043360,81.9,187.21,187.18,7.9341]
[1736646047581,81.9,187.2,187.18,7.9341]
[1736646053599,81.9,187.25,187.18,7.9341]
[1736646059615,81.9,187.24,187.18,16.85735008]
[1736646062818,81.9,187.24,187.18,7.9341]
[1736646063316,81.9,187.24,187.2,8.92325008]
[1736646063522,81.9,187.29,187.22,8.92325008]
[1736646064409,81.9,187.29,187.23,1.51]
[1736646067222,20.0,187.26,187.18,6.3287]
[1736646067524,81.9,187.24,187.18,7.8387]
[1736646069611,81.9,187.24,187.18,16.76195008]
[1736646069807,81.9,187.24,187.2,8.92325008]
[1736646073004,81.9,187.24,187.19,32.70013408]
[1736646075327,81.9,187.24,187.18,16.76195008]
[1736646079732,81.9,187.24,187.19,32.70013408]
[1736646081837,81.9,187.24,187.18,7.8387]
[1736646083551,81.9,187.23,187.18,7.8387]
[1736646089545,81.9,187.22,187.18,7.8387]
[1736646091422,81.9,187.2,187.18,7.8387]
[1736646091951,81.9,187.19,187.13,6.299]
[1736646092129,81.9,187.19,187.13,15.22225008]
[1736646095549,81.9,187.18,187.13,15.22225008]
[1736646097319,81.9,187.18,187.13,6.299]
[1736646125700,81.9,187.18,187.14,8.92325008]
[1736646125882,81.9,187.18,187.15,8.92325008]
[1736646126076,81.9,187.18,187.17,8.92325008]
[1736646126282,81.9,187.18,187.17,10.44195008]
[1736646126802,81.9,187.26,187.18,23.776884]
[1736646126981,81.9,187.26,187.19,8.92325008]
[1736646128396,81.9,187.26,187.17,10.44195008]
[1736646131489,81.9,187.25,187.17,10.44195008]
[1736646132712,20.0,187.26,187.19,8.92325008]
[1736646132910,2.6696,187.29,187.22,8.92325008]
[1736646133084,81.9,187.31,187.22,8.92325008]
[1736646133282,20.0,187.28,187.22,8.92325008]
[1736646137817,20.0,187.28,187.21,8.92325008]
[1736646140218,20.0,187.28,187.22,8.92325008]
[1736646140426,20.0,187.28,187.19,6.0213]
[1736646143409,81.9,187.27,187.19,6.0213]
[1736646147513,81.9,187.26,187.17,1.5187]
[1736646152417,81.9,187.25,187.17,1.5187]
[1736646157820,81.9,187.25,187.17,10.44195008]
[1736646158430,81.9,187.24,187.17,10.44195008]
[1736646158733,81.9,187.24,187.18,8.92325008]
[1736646158908,81.9,187.24,187.19,8.92325008]
[1736646166737,81.9,187.24,187.18,8.92325008]
[1736646168916,81.9,187.24,187.17,1.5187]
[1736646169852,81.9,187.24,187.15,15.14355008]
[1736646170353,81.9,187.22,187.15,15.14355008]
[1736646170718,81.9,187.22,187.14,8.92325008]
[1736646170935,81.9,187.22,187.13,1.6164]
[1736646172444,81.9,187.22,187.13,10.53965008]
[1736646173238,81.9,187.22,187.2,8.92325008]
[1736646173553,81.9,187.22,187.14,0.80147762]
[1736646173763,81.9,187.22,187.19,8.92325008]
[1736646177162,81.9,187.22,187.2,8.92325008]
[1736646178362,81.9,187.28,187.21,32.70013408]
[1736646178571,81.9,187.28,187.22,8.92325008]
[1736646180058,81.9,187.28,187.24,8.92325008]
[1736646180357,81.9,187.28,187.25,8.92325008]
[1736646183759,81.9,187.35,187.22,0.25098]
[1736646183930,81.9,187.34,187.27,8.92325008]
[1736646184135,81.9,187.33,187.27,8.92325008]
[1736646184535,81.9,187.32,187.26,8.92325008]
[1736646184953,81.9,187.32,187.21,14.15479518]
[1736646184954,81.9,187.32,187.25,8.92325008]
[1736646185169,81.9,187.31,187.24,8.92325008]
[1736646188363,81.9,187.3,187.24,8.92325008]
[1736646190964,81.9,187.3,187.23,8.92325008]
[1736646191263,81.9,187.3,187.22,8.92325008]
[1736646193755,81.9,187.27,187.2,8.92325008]
[1736646194253,81.9,187.27,187.19,1.6464]
[1736646194461,81.9,187.27,187.19,10.56965008]
[1736646196852,81.9,187.27,187.2,8.92325008]
[1736646197352,81.9,187.26,187.2,8.92325008]
[1736646202270,81.9,187.26,187.21,8.92325008]
[1736646202473,81.9,187.26,187.24,8.92325008]
[1736646202677,81.9,187.26,187.25,8.92325008]
[1736646203669,81.9,187.31,187.24,8.92325008]
[1736646206777,81.9,187.3,187.23,8.92325008]
[1736646210670,81.9,187.3,187.2,8.92325008]
[1736646211346,81.9,187.3,187.21,8.92325008]
[1736646212356,81.9,187.29,187.21,8.92325008]
[1736646215579,81.9,187.29,187.2,8.92325008]
[1736646215977,81.9,187.29,187.21,8.92325008]
[1736646217466,81.9,187.28,187.24,8.92325008]
[1736646222279,81.9,187.32,187.24,8.92325008]
[1736646222477,81.9,187.32,187.26,8.92325008]
[1736646223177,81.9,187.32,187.27,8.92325008]
[1736646223395,81.9,187.32,187.26,8.92325008]
[1736646226791,81.9,187.32,187.25,10.52085008]
[1736646227286,81.9,187.31,187.25,10.52085008]
[1736646233377,81.9,187.3,187.25,10.52085008]
[1736646241204,81.9,187.3,187.21,13.3535]
[1736646241382,81.9,187.3,187.23,8.92325008]
[1736646242395,81.9,187.3,187.24,8.92325008]
[1736646242597,81.9,187.3,187.25,8.92325008]
[1736646242894,81.9,187.3,187.24,8.92325008]
[1736646245294,81.9,187.29,187.24,8.92325008]
[1736646246294,81.9,187.29,187.26,8.92325008]
[1736646246501,81.9,187.29,187.27,8.92325008]
[1736646247615,81.9,187.33,187.27,8.92325008]
[1736646248670,81.9,187.33,187.28,8.92325008]
[1736646249090,81.9,187.33,187.29,8.92325008]
[1736646253090,81.9,187.33,187.3,8.92325008]
[1736646257408,81.9,187.39,187.3,8.92325008]
[1736646258604,81.9,187.39,187.31,8.92325008]
[1736646258783,81.9,187.39,187.32,8.92325008]
[1736646260303,81.9,187.39,187.33,8.92325008]
[1736646263207,81.9,187.38,187.33,8.92325008]
[1736646264303,2.6675,187.44,187.34,32.70013408]
[1736646264304,81.9,187.42,187.34,32.70013408]
[1736646269214,81.9,187.41,187.34,32.70013408]
[1736646272112,81.9,187.41,187.32,1.5113]
[1736646272321,81.9,187.41,187.32,10.43455008]
[1736646275233,81.9,187.4,187.32,10.43455008]
[1736646278406,81.9,187.4,187.32,1.5113]
[1736646280724,81.9,187.39,187.32,1.5113]
[1736646280923,9.52,187.46,187.32,1.5113]
[1736646280924,81.9,187.38,187.32,1.5113]
[1736646281426,81.9,187.37,187.32,1.5113]
[1736646281723,81.9,187.36,187.32,1.5113]
[1736646285703,81.9,187.35,187.27,10.58655008]
[1736646290236,81.9,187.34,187.27,10.58655008]
[1736646296319,81.9,187.33,187.27,10.58655008]
[1736646296515,81.9,187.32,187.28,8.92325008]
[1736646298709,81.9,187.32,187.3,8.92325008]
[1736646300433,81.9,187.32,187.31,40.41973408]
[1736646300638,81.9,187.41,187.32,23.776884]
[1736646300845,81.9,187.41,187.35,8.92325008]
[1736646301936,81.9,187.4,187.36,8.92325008]
[1736646303029,81.9,187.4,187.31,32.29701865]
[1736646303030,81.9,187.4,187.37,8.92325008]
[1736646304648,81.9,187.4,187.36,8.92325008]
[1736646306512,81.9,187.4,187.35,8.92325008]
[1736646317655,81.9,187.4,187.34,8.92325008]
[1736646318848,81.9,187.4,187.31,7.7196]
[1736646319154,81.9,187.4,187.31,16.64285008]
[1736646320342,81.9,187.4,187.31,7.7196]
[1736646320533,84.5681,187.4,187.31,7.7196]
[1736646322457,84.5681,187.4,187.31,1.5749]
[1736646322458,81.9,187.39,187.31,1.5749]
[1736646323446,81.9,187.38,187.31,1.5749]
[1736646329153,81.9,187.37,187.31,1.5749]
[1736646330145,81.9,187.37,187.28,8.92325008]
[1736646333254,81.9,187.36,187.3,8.92325008]
[1736646333461,81.9,187.35,187.31,8.92325008]
[1736646334662,81.9,187.35,187.28,23.776884]